bitfinex-derivatives/quotes_ETHF0:USTF0_20251210
["timestamp","ask_amount","ask_price","bid_price","bid_amount"]
[1765336345766,1.82465085,3315.5,3315.4,0.5886]
[1765336346269,1.82465085,3315.5,3315.4,1.1784]
[1765336347977,1.13385085,3315.5,3315.4,1.1784]
[1765336348773,1.82465085,3315.5,3315.4,0.5886]
[1765336349575,1.4153,3315.3,3315.2,4.0148408]
[1765336349777,2.30548911,3315.3,3315.2,4.0148408]
[1765336349979,2.30548911,3315.3,3315.2,3.2078]
[1765336350175,1.4153,3315.3,3315.2,3.2078]
[1765336351281,1.4153,3315.3,3315.2,3.7976]
[1765336353478,1.4153,3315.3,3315.2,4.6046408]
[1765336354184,1.4153,3315.3,3315.2,5.1944408]
[1765336354877,1.4153,3315.3,3315.2,4.6046408]
[1765336355483,1.4153,3315.3,3315.2,5.1944408]
[1765336355686,1.4153,3315.3,3315.2,4.3874]
[1765336355986,2.30548911,3315.3,3315.2,3.7976]
[1765336356877,2.30548911,3315.3,3315.2,3.2078]
[1765336357083,2.30548911,3315.3,3315.2,4.01671004]
[1765336357279,2.30548911,3315.3,3315.2,3.2078]
[1765336357877,2.30548911,3315.3,3315.2,3.7976]
[1765336358074,2.30548911,3315.3,3315.2,3.2078]
[1765336358488,2.30548911,3315.3,3315.2,4.28702232]
[1765336358987,2.01344388,3315.3,3315.0,0.80996803]
[1765336359286,2.30548911,3315.1,3315.0,0.80996803]
[1765336361486,1.8212,3315.0,3314.9,0.80996803]
[1765336361688,2.71138911,3315.0,3314.9,0.80996803]
[1765336362588,1.4153,3314.9,3314.8,3.2078]
[1765336362790,1.8212,3314.5,3314.4,4.01815828]
[1765336363087,2.71138911,3314.5,3314.4,4.01815828]
[1765336363287,2.71138911,3314.5,3314.4,3.2078]
[1765336363683,3.60157822,3314.5,3314.4,3.2078]
[1765336364077,2.71138911,3314.5,3314.4,3.2078]
[1765336364882,3.60157822,3314.5,3314.4,3.2078]
[1765336365590,3.60157822,3314.5,3313.9,1.08189914]
[1765336365591,1.4153,3314.1,3314.0,3.2078]
[1765336365786,2.30548911,3314.1,3314.0,3.2078]
[1765336368498,1.8212,3314.0,3313.9,0.00267682]
[1765336369699,1.8212,3314.0,3313.9,0.59247682]
[1765336370197,0.89018911,3314.3,3314.2,1.1796]
[1765336370996,1.29608911,3314.5,3314.4,1.1796]
[1765336371496,2.02058911,3314.5,3314.4,1.1796]
[1765336372499,2.71138911,3314.5,3314.4,1.1796]
[1765336372694,2.02058911,3314.5,3314.4,1.1796]
[1765336372901,2.71138911,3314.5,3314.4,1.1796]
[1765336374702,1.8538,3314.5,3314.4,1.1796]
[1765336374901,2.74398911,3314.5,3314.4,1.1796]
[1765336378696,1.8538,3314.5,3314.4,1.1796]
[1765336379301,1.8538,3314.5,3314.4,0.5898]
[1765336379603,1.874,3314.5,3314.4,1.1828]
[1765336380006,1.1506,3314.5,3314.4,1.1828]
[1765336380604,3.2078,3314.9,3314.4,1.1828]
[1765336380803,4.6759,3314.9,3314.8,1.186]
[1765336381402,4.6759,3314.9,3314.8,0.593]
[1765336381601,1.4681,3314.3,3314.2,4.3938]
[1765336382607,1.4681,3314.3,3314.2,3.2078]
[1765336384303,1.9138,3314.0,3313.9,0.59567682]
[1765336385200,1.9138,3314.0,3313.9,0.00267682]
[1765336385604,1.9138,3314.0,3313.9,0.59567682]
[1765336385794,1.1904,3314.0,3313.9,1.18867682]
[1765336385999,1.9138,3314.0,3313.9,1.18867682]
[1765336386209,1.9138,3314.0,3313.9,0.59567682]
[1765336386407,1.9138,3314.0,3313.9,0.00267682]
[1765336388101,5.35436611,3314.0,3313.9,0.00267682]
[1765336388504,5.1216,3314.0,3313.9,0.59567682]
[1765336388708,5.1216,3314.0,3313.9,1.18477682]
[1765336389296,5.35449966,3314.0,3313.9,0.00267682]
[1765336389805,5.35449966,3314.0,3313.9,0.59177682]
[1765336390206,5.1216,3314.0,3313.9,0.59177682]
[1765336390506,5.35454544,3314.0,3313.9,0.59177682]
[1765336390707,1.9138,3314.0,3313.9,1.18087682]
[1765336391107,0.9183015,3314.4,3313.9,1.18087682]
[1765336391408,2.3326015,3314.4,3314.3,1.1782]
[1765336391711,2.56562152,3314.4,3314.3,1.1782]
[1765336392113,1.6001015,3314.4,3314.3,1.1782]
[1765336392315,1.83323607,3314.4,3314.3,1.1782]
[1765336392609,0.23313457,3314.4,3314.3,1.1782]
[1765336392810,0.23313457,3314.4,3314.2,4.01815828]
[1765336392811,1.1275,3314.5,3314.4,1.1782]
[1765336393010,1.36063457,3314.5,3314.4,1.1782]
[1765336393513,2.09313457,3314.5,3314.4,1.1782]
[1765336393716,2.09313457,3314.5,3314.4,0.5891]
[1765336395711,1.36063457,3314.5,3314.4,1.1782]
[1765336395911,0.4457,3314.5,3314.4,1.98855828]
[1765336396116,1.86,3314.5,3314.4,1.39945828]
[1765336396813,1.4143,3314.4,3314.3,0.81035828]
[1765336397015,1.4143,3314.3,3314.2,0.81035828]
[1765336397206,1.4143,3314.3,3314.2,1.39945828]
[1765336397819,1.4143,3314.3,3314.2,0.81035828]
[1765336398209,1.4143,3314.2,3314.1,0.81035828]
[1765336398405,0.9183015,3314.4,3314.1,0.81160816]
[1765336398605,1.4143,3314.2,3314.1,0.81160816]
[1765336399113,1.4143,3314.2,3314.1,1.40070816]
[1765336399310,1.4143,3314.2,3314.1,1.1782]
[1765336400316,1.4143,3314.2,3314.1,2.25742232]
[1765336400813,2.3326015,3314.4,3314.3,1.1782]
[1765336401017,0.6818,3314.4,3314.3,1.98993645]
[1765336401213,1.4143,3314.4,3314.3,1.98993645]
[1765336401413,1.4143,3314.4,3314.3,1.1782]
[1765336401613,1.4143,3314.4,3314.3,1.98993645]
[1765336403316,1.4143,3314.4,3314.2,3.2078]
[1765336403317,0.4457,3314.5,3314.4,1.1772]
[1765336403516,1.8496,3314.5,3314.4,1.98882039]
[1765336403814,2.08275509,3314.5,3314.4,0.5886]
[1765336404217,1.8496,3314.5,3314.4,0.5886]
[1765336406217,1.8496,3314.5,3314.4,1.1772]
[1765336406421,1.178,3314.5,3314.4,1.1772]
[1765336406919,1.8496,3314.5,3314.4,1.1772]
[1765336408116,1.178,3314.5,3314.4,1.1772]
[1765336408317,0.4457,3314.5,3314.4,1.1772]
[1765336408718,1.178,3314.5,3314.4,1.1772]
[1765336409018,1.8496,3314.5,3314.4,1.1772]
[1765336412224,0.4121,3314.5,3314.4,1.1772]
[1765336412716,1.1444,3314.5,3314.4,1.1772]
[1765336412911,1.816,3314.5,3314.4,1.1772]
[1765336413324,1.816,3314.5,3314.4,1.39975661]
[1765336415121,1.4039,3314.4,3314.3,1.39975661]
[1765336415826,1.4039,3314.4,3314.3,0.81115661]
[1765336417327,1.4039,3314.4,3314.3,1.98835661]
[1765336417519,0.4121,3314.5,3314.4,1.1772]
[1765336417718,0.4121,3314.5,3314.4,1.98834864]
[1765336417916,1.1444,3314.5,3314.4,1.98834864]
[1765336418322,1.816,3314.5,3314.4,1.1772]
[1765336418723,1.1444,3314.5,3314.4,1.1772]
[1765336420323,1.1444,3314.5,3314.4,2.25642232]
[1765336421729,0.4121,3314.5,3314.4,2.25642232]
[1765336423234,0.4121,3314.5,3314.4,1.1772]
[1765336423937,1.816,3314.5,3314.4,1.1772]
[1765336428037,1.816,3314.5,3314.4,1.08190733]
[1765336428235,0.4121,3314.5,3314.4,1.1772]
[1765336428538,1.1444,3314.5,3314.4,1.1772]
[1765336428836,1.816,3314.5,3314.4,1.1772]
[1765336430637,1.1444,3314.5,3314.4,1.1772]
[1765336432038,0.4121,3314.5,3314.4,1.1772]
[1765336436343,1.1126,3314.5,3314.4,1.1772]
[1765336436746,1.3942,3314.4,3314.3,1.62271064]
[1765336437044,1.3942,3314.3,3314.2,5.42091064]
[1765336437248,1.3942,3314.3,3314.2,6.01131064]
[1765336437448,0.7005,3314.3,3314.2,6.01131064]
[1765336438039,1.3942,3314.3,3314.2,4.83051064]
[1765336438245,1.3942,3314.3,3314.2,3.2078]
[1765336438547,1.3942,3314.3,3314.2,3.7982]
[1765336438847,2.28473029,3314.3,3314.2,3.7982]
[1765336440240,2.28473029,3314.3,3314.2,3.2078]
[1765336440437,1.3942,3314.2,3314.1,1.08254576]
[1765336440638,1.62757656,3314.2,3314.1,4.576e-05]
[1765336440841,1.8222,3314.0,3313.9,0.81484393]
[1765336441038,1.3942,3313.7,3313.4,1.62271064]
[1765336441247,6.61643714,3313.7,3312.9,4.83051064]
[1765336441645,4.83537656,3313.7,3313.6,0.71493206]
[1765336441947,2.28473029,3313.8,3313.7,1.4539]
[1765336442149,2.5177927,3313.8,3313.7,0.7104]
[1765336442348,2.28473029,3313.8,3313.7,0.7104]
[1765336443250,2.28473029,3313.8,3313.7,1.4539]
[1765336443740,2.28473029,3313.8,3313.7,0.7104]
[1765336447452,1.3709,3313.7,3313.6,0.00808052]
[1765336447848,1.3709,3313.7,3313.6,0.67988052]
[1765336448048,1.3709,3313.7,3313.6,0.00808052]
[1765336448948,1.3709,3313.7,3313.6,0.67988052]
[1765336449152,1.83982502,3314.0,3313.9,0.6718]
[1765336449451,0.7369,3313.7,3313.6,1.36958052]
[1765336449856,0.00452502,3314.0,3313.9,1.3615]
[1765336450152,0.00452502,3314.0,3313.9,4.5693]
[1765336450539,1.84892502,3314.0,3313.9,4.5693]
[1765336450740,1.84892502,3314.0,3313.9,3.8796]
[1765336451050,0.00452502,3314.0,3313.9,4.5693]
[1765336452044,0.74142502,3314.0,3313.9,4.5693]
[1765336452650,0.00452502,3314.0,3313.9,4.5693]
[1765336454155,0.00452502,3314.0,3313.9,5.45983029]
[1765336455249,0.74142502,3314.0,3313.9,5.45983029]
[1765336455553,0.74142502,3314.0,3313.9,4.5693]
[1765336456156,1.84892502,3314.0,3313.9,3.8796]
[1765336456356,2.73945531,3314.0,3313.9,3.2078]
[1765336456557,2.73945531,3314.0,3313.9,3.8796]
[1765336457458,2.73945531,3314.0,3313.9,4.5693]
[1765336458153,2.73945531,3314.0,3313.9,3.2078]
[1765336458761,2.73945531,3314.0,3313.9,3.8796]
[1765336458954,0.74142502,3314.0,3313.9,4.5693]
[1765336459560,0.00452502,3314.0,3313.9,5.45983029]
[1765336472371,0.00452502,3314.0,3313.9,6.54062479]
[1765336472672,1.40562502,3314.0,3313.9,5.6500945]
[1765336473367,0.00452502,3314.0,3313.9,5.6500945]
[1765336473862,0.00452502,3314.0,3313.9,6.54062479]
[1765336474063,0.00452502,3314.0,3313.9,5.45983029]
[1765336478173,0.00452502,3314.0,3313.9,7.08254093]
[1765336483976,0.68762502,3314.0,3313.9,4.5693]
[1765336485474,0.00452502,3314.0,3313.9,4.5693]
[1765336486279,0.00452502,3314.0,3313.9,6.19201064]
[1765336487774,1.40562502,3314.0,3313.9,6.19201064]
[1765336488181,0.68762502,3314.0,3313.9,6.19201064]
[1765336489672,0.00452502,3314.0,3313.9,6.19201064]
[1765336491073,0.00452502,3314.0,3313.9,7.08254093]
[1765336491281,0.00452502,3314.0,3313.9,5.45983029]
[1765336494485,0.68762502,3314.0,3313.9,6.19256515]
[1765336494685,1.41252502,3314.0,3313.9,6.19256515]
[1765336495984,0.68762502,3314.0,3313.9,6.19256515]
[1765336496587,0.00452502,3314.0,3313.9,6.19256515]
[1765336498484,0.73822502,3314.0,3313.9,6.19256515]
[1765336499379,0.00452502,3314.0,3313.9,6.19256515]
[1765336499889,0.00452502,3314.0,3313.9,5.45983029]
[1765336500080,0.00452502,3314.0,3313.9,6.24043938]
[1765336500281,0.00452502,3314.0,3313.9,7.13096967]
[1765336500689,0.00452502,3314.0,3313.9,6.24043938]
[1765336501490,0.73822502,3314.0,3313.9,6.24043938]
[1765336503088,1.90822502,3314.0,3313.9,4.6171]
[1765336503991,1.90822502,3314.0,3313.9,3.2078]
[1765336505191,1.90822502,3314.0,3313.9,3.892]
[1765336506093,2.14169742,3314.0,3313.9,4.29023367]
[1765336506293,1.4586,3313.9,3313.8,0.81171527]
[1765336506592,1.4127,3313.7,3313.6,0.81979579]
[1765336506792,1.4127,3313.7,3313.6,0.00808052]
[1765336507192,1.64606486,3313.7,3313.6,0.00808052]
[1765336507392,1.64606486,3313.7,3313.6,0.81988335]
[1765336507393,1.4127,3313.7,3313.6,0.81988335]
[1765336508097,2.33097946,3313.7,3313.6,1.49518335]
[1765336508493,2.33097946,3313.7,3313.6,2.17698335]
[1765336508795,2.33097946,3313.7,3313.6,1.49518335]
[1765336510295,2.33097946,3313.7,3313.6,0.68338052]
[1765336513403,2.33097946,3313.7,3313.6,0.00808052]
[1765336513693,2.56401754,3313.7,3313.6,0.00808052]
[1765336516190,2.33097946,3313.7,3313.6,0.00808052]
[1765336516396,2.56390695,3313.7,3313.6,0.00808052]
[1765336521103,2.56390695,3313.7,3313.6,0.68338052]
[1765336521904,1.7968,3313.0,3312.9,0.6753]
[1765336522098,1.7968,3313.0,3312.9,1.3571]
[1765336522798,1.7992876,3313.0,3312.9,0.6782203]
[1765336525102,2.71756706,3313.0,3312.9,0.6782203]
[1765336526808,2.71756706,3313.0,3312.9,0.0029203]
[1765336527620,2.71756706,3313.0,3312.9,0.7402203]
[1765336528023,2.71756706,3313.0,3312.9,0.0029203]
[1765336528620,2.71756706,3313.0,3312.9,0.7402203]
[1765336528920,0.7182876,3313.0,3312.9,1.4445203]
[1765336529323,1.8037876,3313.0,3312.9,0.7402203]
[1765336529816,2.72206706,3313.0,3312.9,0.0029203]
[1765336530219,2.72206706,3313.0,3312.9,0.7402203]
[1765336530422,0.0024876,3313.0,3312.9,1.4445203]
[1765336531822,0.6771876,3313.0,3312.9,1.4445203]
[1765336533420,1.7626876,3313.0,3312.9,1.4445203]
[1765336533928,2.68096706,3313.0,3312.9,0.0029203]
[1765336535517,2.68096706,3313.0,3312.9,0.7402203]
[1765336535722,1.7626876,3313.0,3312.9,0.7402203]
[1765336536026,1.7626876,3313.0,3312.9,1.4445203]
[1765336537721,1.7626876,3313.0,3312.9,0.0029203]
[1765336538832,1.9957241,3313.0,3312.9,0.0029203]
[1765336540532,2.91400356,3313.0,3312.9,0.0029203]
[1765336544036,6.12180356,3313.0,3312.9,0.0029203]
[1765336552031,5.20376731,3313.0,3312.9,0.0029203]
[1765336555439,5.20376731,3313.0,3312.9,0.7012203]
[1765336556146,5.20376731,3313.0,3312.9,0.0029203]
[1765336558243,5.20376731,3313.0,3312.9,0.7012203]
[1765336558448,5.20376731,3313.0,3312.9,0.0029203]
[1765336560752,0.424,3312.0,3311.9,1.62333938]
[1765336561049,0.424,3312.0,3311.8,3.2078]
[1765336561050,1.4561,3311.9,3311.8,3.2078]
[1765336561542,1.4561,3311.9,3311.8,3.21154336]
[1765336561948,1.68928849,3311.9,3311.8,3.21154336]
[1765336562148,1.4561,3311.9,3311.8,3.21154336]
[1765336562650,2.34807893,3311.9,3311.8,3.21154336]
[1765336563554,0.7229,3311.9,3311.8,4.58014336]
[1765336563756,1.4561,3311.9,3311.8,4.58014336]
[1765336563947,1.4561,3311.9,3311.8,3.90984336]
[1765336564458,1.4561,3311.9,3311.8,4.58014336]
[1765336564657,1.4561,3311.9,3311.8,3.21154336]
[1765336569057,1.4561,3311.9,3311.8,0.00374336]
[1765336572762,1.68861024,3311.9,3311.8,4.336e-05]
[1765336572966,1.438,3311.6,3311.5,0.00452502]
[1765336573155,2.32997893,3311.6,3311.5,0.00452502]
[1765336573962,2.32997893,3311.6,3311.5,0.0071138]
[1765336575059,3.22195786,3311.6,3311.5,0.0071138]
[1765336575265,3.22195786,3311.6,3310.9,1.3742]
[1765336575266,0.4048,3311.0,3310.9,1.3742]
[1765336575466,1.8428,3311.0,3310.9,1.3742]
[1765336575662,1.8428,3311.0,3310.9,0.6996]
[1765336575862,1.8428,3311.0,3310.9,1.3742]
[1765336576159,1.8428,3311.0,3310.9,1.37806414]
[1765336576667,0.89197893,3311.1,3311.0,1.3742]
[1765336576965,2.32997893,3311.3,3311.2,1.3742]
[1765336577266,2.73477893,3311.5,3311.4,1.3742]
[1765336577763,2.73477893,3311.5,3311.4,0.6996]
[1765336578156,1.438,3311.1,3311.0,3.9074]
[1765336578365,2.32997893,3311.1,3311.0,3.9074]
[1765336578565,2.32997893,3311.1,3311.0,4.582]
[1765336578766,1.60547893,3311.1,3311.0,4.582]
[1765336578961,1.60547893,3311.3,3311.2,0.6746]
[1765336579161,0.89197893,3311.3,3311.2,1.3742]
[1765336579366,2.73477893,3311.5,3311.4,1.3742]
[1765336579572,3.9213,3311.6,3311.5,1.3742]
[1765336579864,2.32997893,3311.8,3311.7,1.3742]
[1765336580261,2.32997893,3311.8,3311.1,0.89197893]
[1765336580465,2.32997893,3311.6,3311.5,1.3742]
[1765336580858,0.7135,3311.6,3311.5,1.3742]
[1765336581463,1.438,3311.6,3311.5,1.3742]
[1765336586470,0.7135,3311.6,3311.5,1.3742]
[1765336586769,1.4213,3311.6,3311.5,1.3742]
[1765336587168,0.7135,3311.6,3311.5,1.3742]
[1765336587960,1.4213,3311.6,3311.5,1.3742]
[1765336588268,5.0805,3312.0,3311.9,1.4428]
[1765336588467,4.88938968,3312.0,3311.9,1.4428]
[1765336589066,1.4487,3312.0,3311.9,1.4428]
[1765336589271,0.50452502,3312.2,3312.1,1.4428]
[1765336589272,1.95322502,3312.2,3312.1,1.4428]
[1765336589473,2.18633046,3312.2,3312.1,1.4428]
[1765336590573,0.50452502,3312.2,3312.1,2.33477893]
[1765336590874,0.50452502,3312.2,3312.1,1.4428]
[1765336591068,0.50452502,3312.2,3312.1,2.52560599]
[1765336592178,0.7409,3312.8,3312.7,1.4428]
[1765336593463,0.7409,3312.8,3312.7,2.33477893]
[1765336593664,0.7409,3312.8,3312.7,1.4428]
[1765336596070,3.2102876,3313.0,3312.9,1.4428]
[1765336596375,3.9511876,3313.0,3312.9,1.4428]
[1765336597474,4.6589876,3313.0,3312.9,1.4428]
[1765336597771,5.98626653,3313.0,3312.9,1.4428]
[1765336601377,5.98626653,3313.0,3312.9,0.7221]
[1765336602077,5.98626653,3313.0,3312.9,1.4428]
[1765336602478,5.98626653,3313.0,3312.9,0.7221]
[1765336602966,2.77846653,3313.0,3312.9,0.7221]
[1765336603165,1.8864876,3313.0,3312.9,1.4428]
[1765336605276,1.8864876,3313.0,3312.9,0.7221]
[1765336607783,1.4487,3312.7,3312.6,0.7221]
[1765336608079,1.4487,3312.6,3312.5,3.2078]
[1765336608267,1.4487,3312.6,3312.5,3.9299]
[1765336608880,1.4487,3312.6,3312.5,4.6506]
[1765336609174,0.7409,3312.6,3312.5,4.6506]
[1765336609675,1.4487,3312.6,3312.5,3.9299]
[1765336610075,1.4487,3312.6,3312.5,4.6506]
[1765336610577,1.4487,3312.6,3312.5,3.9299]
[1765336610773,1.4487,3312.6,3312.5,4.6506]
[1765336611080,2.34067893,3312.6,3312.5,3.2078]
[1765336611780,1.884,3312.5,3312.4,0.00452502]
[1765336611979,1.4487,3312.1,3312.0,3.2078]
[1765336612274,2.34067893,3312.1,3312.0,3.2078]
[1765336613880,3.23265786,3312.1,3312.0,3.2078]
[1765336614182,1.4302,3311.8,3311.7,0.00452502]
[1765336614370,2.32217893,3311.8,3311.7,0.00452502]
[1765336615685,1.4302,3311.8,3311.7,1.47632502]
[1765336615975,0.4452,3312.0,3311.7,1.47632502]
[1765336616182,3.8835,3312.1,3312.0,1.4718]
[1765336616386,5.46477893,3312.1,3312.0,1.4718]
[1765336616883,5.46477893,3312.1,3312.0,0.742]
[1765336619384,5.46477893,3312.1,3312.0,1.4718]
[1765336621587,5.46477893,3312.1,3312.0,0.742]
[1765336621782,1.365,3311.8,3311.7,0.00452502]
[1765336621988,2.25697893,3311.8,3311.7,0.00452502]
[1765336622189,1.365,3311.1,3311.0,3.2078]
[1765336622383,2.25697893,3311.1,3311.0,3.2078]
[1765336622684,1.365,3311.1,3311.0,3.2078]
[1765336625186,1.8102,3311.0,3310.9,0.00386414]
[1765336626484,1.8102,3311.0,3310.9,0.74586414]
[1765336626681,1.8102,3311.0,3310.9,0.00386414]
[1765336627088,2.73044569,3311.0,3310.9,0.00386414]
[1765336628191,1.8102,3311.0,3310.9,0.00386414]
[1765336629287,1.8102,3311.0,3310.9,0.74586414]
[1765336629485,3.8835,3311.1,3311.0,1.4718]
[1765336629786,4.5728,3311.1,3311.0,1.4718]
[1765336630290,0.71652502,3311.4,3311.3,1.4064]
[1765336630490,1.39632502,3311.4,3311.3,1.4064]
[1765336631589,1.3918,3311.1,3311.0,4.6142]
[1765336631783,0.712,3311.1,3311.0,4.6142]
[1765336631982,2.31657071,3311.4,3311.3,1.4064]
[1765336632180,1.3918,3311.1,3311.0,4.6142]
[1765336633494,0.712,3311.1,3311.0,4.6142]
[1765336634392,0.92477071,3311.4,3311.3,1.4064]
[1765336634393,1.39632502,3311.4,3311.3,1.4064]
[1765336634887,1.3918,3311.1,3311.0,4.6142]
[1765336635492,1.3918,3311.1,3311.0,3.9208]
[1765336635692,1.8295,3311.0,3310.9,0.00386414]
[1765336635892,6.87779138,3311.0,3310.9,0.00386414]
[1765336636196,5.95754569,3311.0,3310.9,0.00386414]
[1765336639600,2.74974569,3311.0,3310.9,0.00386414]
[1765336641105,2.98232455,3311.0,3310.9,0.00386414]
[1765336642800,2.74974569,3311.0,3310.9,0.71686414]
[1765336643000,2.74974569,3311.0,3310.9,0.00386414]
[1765336643304,2.98239732,3311.0,3310.9,0.00386414]
[1765336645712,2.98239732,3311.0,3310.9,0.71686414]
[1765336645903,2.98239732,3311.0,3310.9,0.00386414]
[1765336646808,2.98239732,3311.0,3310.9,0.74186414]
[1765336647010,1.38662502,3311.4,3311.3,1.4128]
[1765336647306,2.53958447,3311.4,3311.3,0.738]
[1765336647505,1.8231,3311.0,3310.9,0.74186414]
[1765336647708,2.74334569,3311.0,3310.9,0.00386414]
[1765336647902,2.74334569,3311.0,3310.9,0.74186414]
[1765336648206,2.74334569,3311.0,3310.9,1.41666414]
[1765336649406,2.74334569,3311.0,3310.9,0.00386414]
[1765336649709,2.97634781,3311.0,3310.9,0.00386414]
[1765336650203,2.05610212,3311.0,3310.9,0.74186414]
[1765336650510,2.97634781,3311.0,3310.9,0.74186414]
[1765336650709,2.05610212,3311.0,3310.9,1.41666414]
[1765336651205,2.05610212,3311.0,3310.9,0.74186414]
[1765336651412,2.05610212,3311.0,3310.9,0.00386414]
[1765336651413,2.97634781,3311.0,3310.9,0.00386414]
[1765336653507,2.05610212,3311.0,3310.9,0.74186414]
[1765336653714,0.94110212,3311.0,3310.9,1.41666414]
[1765336653914,0.7081,3311.0,3310.9,1.41666414]
[1765336654211,1.3821,3311.0,3310.9,1.41666414]
[1765336654406,1.61510212,3311.0,3310.9,1.41666414]
[1765336655600,0.94110212,3311.0,3310.9,1.41666414]
[1765336655806,3.9159,3311.2,3311.1,1.4128]
[1765336656006,4.82312267,3311.2,3311.1,1.4128]
[1765336658219,4.14912267,3311.2,3311.1,1.4128]
[1765336658419,0.23322267,3311.2,3311.1,1.4128]
[1765336658621,1.38662502,3311.4,3311.3,1.4128]
[1765336658820,1.61984769,3311.4,3311.3,1.4128]
[1765336666119,0.94584769,3311.4,3311.3,1.4128]
[1765336666622,1.61984769,3311.4,3311.3,1.4128]
[1765336669525,0.94584769,3311.4,3311.3,1.4128]
[1765336669722,0.00452502,3311.4,3311.3,1.4128]
[1765336670625,0.71262502,3311.4,3311.3,1.4128]
[1765336672020,0.00452502,3311.4,3311.3,1.4128]
[1765336672727,1.8273,3312.0,3311.9,1.4128]
[1765336672926,0.94122432,3312.0,3311.9,1.4128]
[1765336673316,1.3821,3312.0,3311.9,1.4128]
[1765336673523,0.94122432,3312.0,3311.9,1.4128]
[1765336673825,0.7081,3312.0,3311.9,1.4128]
[1765336674022,0.23764934,3312.3,3312.2,0.6746]
[1765336674023,0.91324934,3312.3,3312.2,0.6746]
[1765336674227,1.59284934,3312.3,3312.2,0.6746]
[1765336676328,1.59284934,3312.3,3311.7,3.2078]
[1765336676528,1.58832432,3312.2,3312.1,0.6746]
[1765336678033,0.6756,3311.8,3311.7,4.5631]
[1765336678330,1.3552,3311.8,3311.7,4.5631]
[1765336679734,0.6756,3311.8,3311.7,4.5631]
[1765336681025,1.3552,3311.8,3311.7,4.5631]
[1765336681221,1.3552,3311.8,3311.7,3.2078]
[1765336681423,1.3552,3311.3,3311.2,3.8824]
[1765336681833,1.3552,3311.3,3311.2,4.5631]
[1765336682234,1.3552,3311.3,3311.2,3.8824]
[1765336682427,1.3552,3311.3,3311.2,4.5631]
[1765336682623,0.6756,3311.3,3311.2,4.5631]
[1765336683130,1.3552,3311.3,3311.2,4.5631]
[1765336684131,2.24717843,3311.3,3311.2,4.5631]
[1765336684337,2.24717843,3311.3,3311.2,3.8824]
[1765336686232,1.7744,3311.5,3311.4,1.3553]
[1765336686432,0.89197843,3311.6,3311.4,1.3553]
[1765336686634,1.56757843,3311.6,3311.5,1.3553]
[1765336686827,2.48020634,3311.6,3311.5,1.3553]
[1765336688031,2.24717843,3311.6,3311.5,1.3553]
[1765336688230,2.48022494,3311.6,3311.5,0.6746]
[1765336688430,1.3552,3311.3,3311.2,4.5631]
[1765336689030,1.3552,3311.3,3311.2,3.8824]
[1765336690439,1.3552,3311.3,3311.2,4.5631]
[1765336691142,1.63367843,3311.6,3311.5,1.4414]
[1765336691339,2.59626845,3311.6,3311.5,1.4414]
[1765336692242,2.36317843,3311.8,3311.7,1.4414]
[1765336692545,2.59630244,3311.8,3311.7,1.4414]
[1765336699947,2.59630244,3311.8,3311.7,0.7035]
[1765336701349,0.7417,3311.4,3311.3,2.52291387]
[1765336701644,2.36317843,3311.4,3311.3,1.4414]
[1765336701842,2.36317843,3311.4,3311.2,4.28931387]
[1765336702042,1.4712,3311.3,3311.2,4.28931387]
[1765336702242,1.4712,3311.3,3311.2,4.99281387]
[1765336702445,1.4712,3311.3,3311.2,5.73071387]
[1765336703547,1.4712,3311.3,3311.2,2.52291387]
[1765336703845,1.4712,3311.3,3311.2,5.73071387]
[1765336704648,0.7417,3311.3,3311.2,5.73071387]
[1765336705248,0.7417,3311.3,3311.2,4.6492]
[1765336705948,1.57607843,3311.5,3311.4,1.4364]
[1765336706152,0.89197843,3311.5,3311.4,1.4364]
[1765336706650,0.89197843,3311.7,3311.6,1.4364]
[1765336706847,1.12527696,3311.7,3311.6,1.4364]
[1765336707051,0.23329853,3311.7,3311.6,1.4364]
[1765336707251,1.80937696,3312.0,3311.9,1.4364]
[1765336707847,2.97547696,3312.0,3311.9,0.741]
[1765336708048,1.4166,3311.7,3311.6,4.6442]
[1765336708354,2.54187696,3311.7,3311.6,4.6442]
[1765336710943,2.54187696,3311.7,3311.6,3.9488]
[1765336711149,2.54187696,3311.7,3311.6,3.2078]
[1765336711945,1.64989853,3311.7,3311.6,4.6442]
[1765336712150,2.54187696,3311.7,3311.6,3.9488]
[1765336714756,2.54187696,3311.7,3311.6,3.2078]
[1765336719955,1.4166,3311.4,3311.3,2.52273503]
[1765336720256,2.54191242,3311.4,3311.3,1.4364]
[1765336721459,2.54191242,3311.4,3311.2,4.29413503]
[1765336721460,1.4166,3311.3,3311.2,5.03513503]
[1765336721657,0.89197843,3311.4,3311.2,5.73053503]
[1765336721859,1.57607843,3311.6,3311.5,1.4364]
[1765336722163,1.80943645,3311.6,3311.5,1.4364]
[1765336722461,0.23335802,3311.6,3311.5,1.4364]
[1765336722658,0.23335802,3311.7,3311.6,1.4364]
[1765336722861,0.91745802,3311.7,3311.6,1.4364]
[1765336723454,1.80943645,3311.7,3311.6,1.4364]
[1765336725363,1.12533645,3311.7,3311.6,1.4364]
[1765336725962,1.80943645,3311.7,3311.6,1.4364]
[1765336728150,0.91745802,3311.7,3311.6,1.4364]
[1765336729355,0.91746206,3311.9,3311.8,1.4364]
[1765336729560,1.80944049,3311.9,3311.8,1.4364]
[1765336729759,2.54194049,3311.9,3311.8,1.4364]
[1765336732660,2.30857843,3311.9,3311.8,1.4364]
[1765336732959,2.5419397,3311.9,3311.8,1.4364]
[1765336733162,2.5419397,3311.9,3311.8,0.741]
[1765336735362,2.5419397,3311.9,3311.8,1.4364]
[1765336735565,1.64996127,3311.9,3311.8,1.4364]
[1765336739767,1.64996127,3311.9,3311.8,0.741]
[1765336740568,1.8524,3311.5,3311.4,1.08686509]
[1765336740868,1.4077,3311.3,3311.2,4.29466509]
[1765336741068,2.29967843,3311.3,3311.2,4.97856509]
[1765336741268,2.53301782,3311.3,3311.2,4.97856509]
[1765336741565,2.53301782,3311.3,3310.9,1.09072923]
[1765336741566,1.8524,3311.0,3310.9,1.09072923]
[1765336741764,2.97771782,3311.0,3310.9,0.00386414]
[1765336743468,2.97771782,3311.0,3310.9,0.68776414]
[1765336743870,2.97771782,3311.0,3310.9,0.00386414]
[1765336744373,1.12531782,3311.0,3310.9,1.36816414]